fUSD/lending_fUSD_20260513
["ID","MTS","AMOUNT","RATE_DAILY","PERIOD"]
[422169675,1778644241000,-1827.15,0.000359,14]
[422169684,1778644241000,-11463.81,0.00036337,30]
[422169686,1778644241000,-866.79698873,0.00036499,2]
[422169679,1778644241000,-507.0,0.00036103,14]
[422169692,1778644241000,-1125.69689773,0.00036513,20]
[422169688,1778644241000,-1068.65964578,0.00036513,20]
[422169690,1778644241000,-1129.47116862,0.00036513,20]
[422169682,1778644241000,-602.16,0.000362,7]
[422169696,1778644241000,-1077.88946434,0.00036513,20]
[422169694,1778644241000,-1037.05852835,0.00036513,20]
[422169700,1778644241000,-1108.64624538,0.00036513,20]
[422169698,1778644241000,-1147.72300628,0.00036513,20]
[422169703,1778644241000,-1045.40351392,0.00036513,20]
[422169673,1778644241000,-350.0,0.0003589,5]
[422169659,1778644241000,-152.0,0.00035628,30]
[422169773,1778644241000,-500.0,0.00037027,120]
[422169791,1778644241000,-300.0,0.00037143,2]
[422169843,1778644241000,-300.51493316,0.00037143,2]
[422169834,1778644241000,-300.60868028,0.00037143,2]
[422169845,1778644241000,-1146.85439814,0.00037143,2]
[422169847,1778644241000,-309.50271907,0.00037143,2]
[422169860,1778644241000,-300.0,0.00037143,2]
[422169862,1778644241000,-310.8122113,0.00037143,2]
[422169864,1778644241000,-300.0,0.00037143,2]
[422169849,1778644241000,-864.21260631,0.00037143,2]
[422169858,1778644241000,-300.51069385,0.00037143,2]
[422169851,1778644241000,-300.0,0.00037143,2]
[422169866,1778644241000,-300.55024055,0.00037143,2]
[422169854,1778644241000,-1755.48763153,0.00037143,2]
[422169856,1778644241000,-300.0,0.00037143,2]
[422169840,1778644241000,-300.0,0.00037143,2]
[422169870,1778644241000,-300.0,0.00037143,2]
[422169874,1778644241000,-451.7860235,0.00037143,2]
[422169872,1778644241000,-300.0,0.00037143,2]
[422169875,1778644241000,-300.0,0.00037143,2]
[422169877,1778644241000,-300.0,0.00037143,2]
[422169887,1778644241000,-317.48500943,0.00037143,2]
[422169881,1778644241000,-483.96406548,0.00037143,2]
[422169891,1778644241000,-1099.20837018,0.00037143,2]
[422169893,1778644241000,-378.69464343,0.00037143,2]
[422169885,1778644241000,-300.98575595,0.00037143,2]
[422169879,1778644241000,-300.0,0.00037143,2]
[422169775,1778644241000,-799.47,0.00037027,7]
[422169895,1778644241000,-300.0,0.00037143,2]
[422169889,1778644241000,-300.0,0.00037143,2]
[422169868,1778644241000,-463.72172131,0.00037143,2]
[422169836,1778644241000,-853.95058635,0.00037143,2]
[422169883,1778644241000,-309.75646752,0.00037143,2]
[422169842,1778644241000,-526.74681901,0.00037143,2]
[422169841,1778644241000,-345.09358166,0.00037143,2]
[422169789,1778644241000,-150.0,0.00037131,7]
[422169777,1778644241000,-348.28445607,0.00037032,2]
[422169785,1778644241000,-150.0,0.00037094,7]
[422169787,1778644241000,-500.0,0.0003713,2]
[422169781,1778644241000,-507.0,0.00037079,15]
[422169793,1778644241000,-300.46344089,0.00037143,2]
[422169783,1778644241000,-150.0,0.00037094,7]
[422169801,1778644241000,-300.81953279,0.00037143,2]
[422169799,1778644241000,-300.0,0.00037143,2]
[422169797,1778644241000,-364.52848235,0.00037143,2]
[422169795,1778644241000,-300.0,0.00037143,2]
[422169803,1778644241000,-604.28857032,0.00037143,2]
[422169815,1778644241000,-300.0,0.00037143,2]
[422169779,1778644241000,-150.0,0.00037033,7]
[422169817,1778644241000,-725.87349266,0.00037143,2]
[422169821,1778644241000,-301.70878526,0.00037143,2]
[422169828,1778644241000,-348.57884027,0.00037143,2]
[422169832,1778644241000,-300.0,0.00037143,2]
[422169830,1778644241000,-381.12752308,0.00037143,2]
[422169826,1778644241000,-300.4836212,0.00037143,2]
[422169811,1778644241000,-527.6022146,0.00037143,2]
[422169838,1778644241000,-300.0,0.00037143,2]
[422169823,1778644241000,-300.0,0.00037143,2]
[422169809,1778644241000,-300.0,0.00037143,2]
[422169807,1778644241000,-300.0,0.00037143,2]
[422169805,1778644241000,-300.49400695,0.00037143,2]
[422169819,1778644241000,-300.0,0.00037143,2]
[422169813,1778644241000,-893.15010961,0.00037143,2]
[422169977,1778644242000,-309.50271907,0.00037143,2]
[422169987,1778644242000,-300.57597218,0.00037143,2]
[422169983,1778644242000,-1755.48763153,0.00037143,2]
[422169981,1778644242000,-300.54001455,0.00037143,2]
[422169973,1778644242000,-300.4348941,0.00037143,2]
[422169975,1778644242000,-1146.85439814,0.00037143,2]
[422169956,1778644242000,-300.0,0.00037143,2]
[422169970,1778644242000,-526.74681901,0.00037143,2]
[422169952,1778644242000,-300.0,0.00037143,2]
[422169985,1778644242000,-300.0,0.00037143,2]
[422169979,1778644242000,-864.21260631,0.00037143,2]
[422169958,1778644242000,-300.0,0.00037143,2]
[422169999,1778644242000,-451.7860235,0.00037143,2]
[422169991,1778644242000,-300.0,0.00037143,2]
[422169993,1778644242000,-465.60508682,0.00037143,2]
[422169995,1778644242000,-300.0,0.00037143,2]
[422169997,1778644242000,-300.0,0.00037143,2]
[422170021,1778644242000,-300.0,0.00037143,2]
[422170019,1778644242000,-300.0,0.00037143,2]
[422170001,1778644242000,-300.0,0.00037143,2]
[422170005,1778644242000,-300.0,0.00037143,2]
[422170009,1778644242000,-309.75646752,0.00037143,2]
[422170017,1778644242000,-300.0,0.00037143,2]
[422170025,1778644242000,-300.0,0.00037143,2]
[422169954,1778644242000,-300.0,0.00037143,2]
[422169989,1778644242000,-310.8122113,0.00037143,2]
[422169949,1778644242000,-300.4836212,0.00037143,2]
[422169934,1778644242000,-1066.61966841,0.00037143,2]
[422169966,1778644242000,-300.56091381,0.00037143,2]
[422170003,1778644242000,-300.0,0.00037143,2]
[422169899,1778644242000,-300.0,0.00037143,2]
[422169897,1778644242000,-300.0,0.00037143,2]
[422169901,1778644242000,-300.0,0.00037143,2]
[422169903,1778644242000,-300.0,0.00037143,2]
[422169905,1778644242000,-300.60852152,0.00037143,2]
[422169919,1778644242000,-300.0,0.00037143,2]
[422169907,1778644242000,-300.0,0.00037143,2]
[422169915,1778644242000,-300.0,0.00037143,2]
[422169921,1778644242000,-300.0,0.00037143,2]
[422169917,1778644242000,-492.55383622,0.00037143,2]
[422169924,1778644242000,-604.28857032,0.00037143,2]
[422169926,1778644242000,-300.49400695,0.00037143,2]
[422169943,1778644242000,-300.0,0.00037143,2]
[422169928,1778644242000,-300.0,0.00037143,2]
[422169936,1778644242000,-893.15010961,0.00037143,2]
[422169939,1778644242000,-590.75679528,0.00037143,2]
[422169941,1778644242000,-725.87349266,0.00037143,2]
[422169930,1778644242000,-300.0,0.00037143,2]
[422169932,1778644242000,-527.6022146,0.00037143,2]
[422169945,1778644242000,-301.70878526,0.00037143,2]
[422169947,1778644242000,-300.0,0.00037143,2]
[422169962,1778644242000,-300.0,0.00037143,2]
[422169960,1778644242000,-853.95058635,0.00037143,2]
[422169964,1778644242000,-1911.85385745,0.00037143,2]
[422169968,1778644242000,-343.88369636,0.00037143,2]
[422170015,1778644242000,-300.0,0.00037143,2]
[422170048,1778644242000,-150.0,0.0003735,7]
[422170023,1778644242000,-300.67819865,0.00037143,2]
[422170096,1778644242000,-150.0,0.00037606,7]
[422170094,1778644242000,-150.0,0.00037606,7]
[422170085,1778644242000,-799.47,0.00037547,7]
[422170098,1778644242000,-150.0,0.00037618,7]
[422170087,1778644242000,-1040.52859357,0.00037566,2]
[422170104,1778644242000,-150.0,0.00037715,7]
[422170083,1778644242000,-500.0,0.00037547,120]
[422170100,1778644242000,-3083.8664249,0.00037637,2]
[422170090,1778644242000,-150.0,0.00037583,7]
[422170102,1778644242000,-150.0,0.00037656,30]
[422170106,1778644242000,-500.0,0.00037752,30]
[422170110,1778644242000,-1444.0,0.00037753,120]
[422170108,1778644242000,-42530.0,0.00037753,60]
[422170124,1778644242000,-150.0,0.00037862,7]
[422170116,1778644242000,-350.0,0.00037808,5]
[422170118,1778644242000,-150.0,0.00037813,7]
[422170114,1778644242000,-150.0,0.00037783,7]
[422170121,1778644242000,-40394.0,0.00037829,60]
[422170128,1778644242000,-150.0,0.00037862,7]
[422170126,1778644242000,-150.0,0.00037862,7]
[422170139,1778644242000,-42530.0,0.00037981,60]
[422170130,1778644242000,-150.0,0.0003791,7]
[422170133,1778644242000,-150.0,0.00037912,30]
[422170135,1778644242000,-150.0,0.00037955,7]
[422170011,1778644242000,-300.0,0.00037143,2]
[422170092,1778644242000,-602.16,0.000376,7]
[422170081,1778644242000,-150.0,0.00037521,7]
[422170112,1778644242000,-150.0,0.0003778,2]
[422170077,1778644242000,-284.05478419,0.00037509,2]
[422170079,1778644242000,-152.0,0.00037509,2]
[422170013,1778644242000,-1094.44656271,0.00037143,2]
[422170007,1778644242000,-483.96406548,0.00037143,2]
[422170027,1778644242000,-150.0,0.00037144,30]
[422170032,1778644242000,-1827.15,0.000372,14]
[422170030,1778644242000,-150.0,0.00037153,7]
[422170034,1778644242000,-178.45921432,0.000372,120]
[422170038,1778644242000,-554.0,0.00037222,2]
[422170040,1778644242000,-150.0,0.00037228,7]
[422170044,1778644242000,-150.0,0.00037326,7]
[422170042,1778644242000,-220.16,0.00037301,2]
[422170046,1778644242000,-150.0,0.0003735,7]
[422170137,1778644242000,-11463.81,0.00037977,30]
[422170036,1778644242000,-150.0,0.0003721,7]
[422170068,1778644242000,-267.24769101,0.00037509,2]
[422170050,1778644242000,-150.0,0.0003735,7]
[422170070,1778644242000,-233.0,0.00037509,2]
[422170073,1778644242000,-534.0,0.00037509,2]
[422170066,1778644242000,-150.0,0.00037468,7]
[422170061,1778644242000,-150.0,0.00037423,7]
[422170075,1778644242000,-465.0,0.00037509,2]
[422170059,1778644242000,-150.0,0.000374,30]
[422170055,1778644242000,-3541.0,0.00037351,2]
[422170057,1778644242000,-417.0,0.00037351,2]
[422170052,1778644242000,-1353.0,0.00037351,2]
[422170064,1778644242000,-150.0,0.00037423,7]
[422170225,1778644243000,-500.0,0.00038356,2]
[422170219,1778644243000,-500.0,0.00038356,2]
[422170228,1778644243000,-500.0,0.00038356,2]
[422170230,1778644243000,-500.0,0.00038356,2]
[422170216,1778644243000,-500.0,0.00038356,2]
[422170207,1778644243000,-500.0,0.00038356,2]
[422170205,1778644243000,-500.0,0.00038356,2]
[422170213,1778644243000,-500.0,0.00038356,2]
[422170211,1778644243000,-500.0,0.00038356,2]
[422170209,1778644243000,-500.0,0.00038356,2]
[422170222,1778644243000,-500.0,0.00038356,2]
[422170214,1778644243000,-500.0,0.00038356,2]
[422170231,1778644243000,-415.69729798,0.00038356,2]
[422170250,1778644243000,-500.0,0.00038356,2]
[422170238,1778644243000,-500.0,0.00038356,2]
[422170236,1778644243000,-500.0,0.00038356,2]
[422170240,1778644243000,-500.0,0.00038356,2]
[422170243,1778644243000,-500.0,0.00038356,2]
[422170244,1778644243000,-500.0,0.00038356,2]
[422170242,1778644243000,-500.0,0.00038356,2]
[422170241,1778644243000,-407.19620485,0.00038356,2]
[422170247,1778644243000,-500.0,0.00038356,2]
[422170245,1778644243000,-500.0,0.00038356,2]
[422170246,1778644243000,-500.0,0.00038356,2]
[422170248,1778644243000,-500.0,0.00038356,2]
[422170203,1778644243000,-1001.6946586,0.00038356,7]
[422170233,1778644243000,-500.0,0.00038356,2]
[422170201,1778644243000,-175.88953785,0.00038329,120]
[422170146,1778644243000,-507.0,0.00038054,16]
[422170185,1778644243000,-500.0,0.0003826,120]
[422170141,1778644243000,-150.0,0.00038008,7]
[422170268,1778644243000,-500.0,0.00038356,2]
[422170143,1778644243000,-150.0,0.00038008,7]
[422170148,1778644243000,-535.42921751,0.00038072,120]
[422170150,1778644243000,-150.0,0.00038098,7]
[422170152,1778644243000,-570.79180423,0.000381,33]
[422170162,1778644243000,-510.0,0.00038137,2]
[422170164,1778644243000,-500.0,0.00038137,2]
[422170154,1778644243000,-150.0,0.00038105,7]
[422170158,1778644243000,-150.0,0.00038117,7]
[422170170,1778644243000,-200.0,0.00038157,6]
[422170166,1778644243000,-200.0,0.00038157,6]
[422170156,1778644243000,-150.0,0.00038117,7]
[422170168,1778644243000,-200.0,0.00038157,6]
[422170160,1778644243000,-40394.0,0.00038134,60]
[422170177,1778644243000,-150.0,0.00038203,7]
[422170173,1778644243000,-200.0,0.00038157,6]
[422170175,1778644243000,-150.0,0.00038168,30]
[422170178,1778644243000,-500.0,0.00038209,2]
[422170180,1778644243000,-42530.0,0.0003821,60]
[422170183,1778644243000,-500.0,0.0003826,120]
[422170193,1778644243000,-1000.0,0.000383,2]
[422170187,1778644243000,-799.47,0.0003826,7]
[422170191,1778644243000,-308.0,0.000383,2]
[422170189,1778644243000,-799.47,0.0003826,7]
[422170197,1778644243000,-150.0,0.000383,7]
[422170199,1778644243000,-150.0,0.00038327,7]
[422170195,1778644243000,-314.0,0.000383,2]
[422170254,1778644243000,-500.0,0.00038356,2]
[422170256,1778644243000,-500.0,0.00038356,2]
[422170273,1778644243000,-500.0,0.00038356,2]
[422170325,1778644243000,-40394.0,0.00038439,120]
[422170327,1778644243000,-42530.0,0.00038439,120]
[422170335,1778644243000,-929.64,0.00038449,2]
[422170333,1778644243000,-929.64,0.00038449,2]
[422170329,1778644243000,-929.64,0.00038447,2]
[422170331,1778644243000,-929.64,0.00038447,2]
[422170345,1778644243000,-150.0,0.00038495,7]
[422170341,1778644243000,-929.64,0.00038451,2]
[422170343,1778644243000,-929.64,0.00038451,2]
[422170349,1778644243000,-236.85,0.00038517,120]
[422170347,1778644243000,-155.06,0.00038517,120]
[422170337,1778644243000,-929.64,0.00038449,2]
[422170339,1778644243000,-929.67,0.00038451,2]
[422170311,1778644243000,-150.0,0.00038373,7]
[422170353,1778644243000,-150.0,0.00038593,7]
[422170369,1778644243000,-150.0,0.00038699,7]
[422170364,1778644243000,-150.0,0.00038681,30]
[422170363,1778644243000,-42530.0,0.00038667,120]
[422170357,1778644243000,-236.85,0.00038617,120]
[422170359,1778644243000,-150.0,0.00038629,7]
[422170361,1778644243000,-150.0,0.00038629,7]
[422170367,1778644243000,-150.0,0.0003869,7]
[422170351,1778644243000,-150.0,0.00038593,7]
[422170371,1778644243000,-155.06,0.00038717,120]
[422170373,1778644243000,-236.85,0.00038717,120]
[422170375,1778644243000,-150.0,0.00038728,7]
[422170377,1778644243000,-500.0,0.00038742,2]
[422170264,1778644243000,-500.0,0.00038356,2]
[422170355,1778644243000,-155.06,0.00038617,120]
[422170323,1778644243000,-16779.8314,0.00038428,30]
[422170379,1778644243000,-40394.0,0.00038743,120]
[422170319,1778644243000,-500.0,0.00038415,30]
[422170309,1778644243000,-150.0,0.00038373,7]
[422170262,1778644243000,-500.0,0.00038356,2]
[422170260,1778644243000,-500.0,0.00038356,2]
[422170258,1778644243000,-500.0,0.00038356,2]
[422170266,1778644243000,-500.0,0.00038356,2]
[422170271,1778644243000,-500.0,0.00038356,2]
[422170275,1778644243000,-387.57612507,0.00038356,2]
[422170286,1778644243000,-500.0,0.00038356,2]
[422170288,1778644243000,-500.0,0.00038356,2]
[422170290,1778644243000,-500.0,0.00038356,2]
[422170281,1778644243000,-500.0,0.00038356,2]
[422170279,1778644243000,-500.0,0.00038356,2]
[422170283,1778644243000,-500.0,0.00038356,2]
[422170252,1778644243000,-500.0,0.00038356,2]
[422170296,1778644243000,-1000.0,0.00038356,7]
[422170284,1778644243000,-500.0,0.00038356,2]
[422170306,1778644243000,-385.59,0.00038356,120]
[422170304,1778644243000,-459.37537316,0.00038356,2]
[422170321,1778644243000,-150.0,0.00038425,30]
[422170315,1778644243000,-150.0,0.00038398,7]
[422170317,1778644243000,-150.0,0.00038413,7]
[422170313,1778644243000,-150.0,0.00038373,7]
[422170300,1778644243000,-932.48183126,0.00038356,7]
[422170298,1778644243000,-1000.0,0.00038356,7]
[422170294,1778644243000,-458.37215967,0.00038356,2]
[422170277,1778644243000,-500.0,0.00038356,2]
[422170292,1778644243000,-500.0,0.00038356,2]
[422170302,1778644243000,-500.0,0.00038356,2]
[422170486,1778644244000,-40394.0,0.00039353,120]
[422170472,1778644244000,-206.4843587,0.00039208,120]
[422170488,1778644244000,-42530.0,0.00039353,120]
[422170484,1778644244000,-44929.0,0.00039353,120]
[422170453,1778644244000,-150.0,0.00039071,7]
[422170465,1778644244000,-150.0,0.00039177,7]
[422170464,1778644244000,-150.0,0.00039141,7]
[422170468,1778644244000,-150.0,0.00039177,7]
[422170462,1778644244000,-150.0,0.00039141,7]
[422170470,1778644244000,-150.0,0.00039193,30]
[422170451,1778644244000,-40394.0,0.00039048,120]
[422170481,1778644244000,-500.0,0.00039352,30]
[422170478,1778644244000,-150.0,0.00039275,7]
[422170494,1778644244000,-150.0,0.00039397,7]
[422170490,1778644244000,-150.0,0.00039357,7]
[422170476,1778644244000,-236.85,0.00039217,120]
[422170474,1778644244000,-159.0818048,0.00039208,120]
[422170479,1778644244000,-236.85,0.00039317,120]
[422170496,1778644244000,-150.0,0.00039397,7]
[422170500,1778644244000,-236.85,0.00039417,120]
[422170509,1778644244000,-799.47,0.00039546,7]
[422170502,1778644244000,-150.0,0.00039443,7]
[422170507,1778644244000,-236.85,0.00039517,120]
[422170498,1778644244000,-150.0,0.00039397,7]
[422170504,1778644244000,-150.0,0.00039449,30]
[422170449,1778644244000,-150.0,0.00039042,7]
[422170505,1778644244000,-150.0,0.0003947,7]
[422170492,1778644244000,-150.0,0.00039372,7]
[422170445,1778644244000,-507.0,0.0003903,17]
[422170418,1778644244000,-236.85,0.00038917,120]
[422170459,1778644244000,-42530.0,0.00039124,120]
[422170514,1778644244000,-799.47,0.00039546,7]
[422170389,1778644244000,-799.47,0.00038758,7]
[422170391,1778644244000,-1703.57674178,0.00038773,2]
[422170387,1778644244000,-500.0,0.00038758,120]
[422170393,1778644244000,-150.0,0.00038787,7]
[422170397,1778644244000,-236.85,0.00038817,120]
[422170396,1778644244000,-155.06,0.00038817,120]
[422170406,1778644244000,-150.0,0.00038885,7]
[422170404,1778644244000,-150.0,0.00038885,7]
[422170408,1778644244000,-151.0,0.00038893,14]
[422170401,1778644244000,-150.0,0.00038885,7]
[422170414,1778644244000,-2000.0,0.000389,7]
[422170409,1778644244000,-42530.0,0.00038896,120]
[422170457,1778644244000,-236.85,0.00039117,120]
[422170400,1778644244000,-150.0,0.00038885,7]
[422170416,1778644244000,-155.06,0.00038917,120]
[422170431,1778644244000,-3444.32756355,0.00039,30]
[422170433,1778644244000,-3444.32756355,0.00039,30]
[422170420,1778644244000,-150.0,0.00038937,30]
[422170422,1778644244000,-150.0,0.00038982,7]
[422170429,1778644244000,-3444.32756356,0.00039,30]
[422170424,1778644244000,-153.15555939,0.00039,2]
[422170427,1778644244000,-25000.0,0.00039,5]
[422170435,1778644244000,-500.0,0.00039005,120]
[422170440,1778644244000,-155.09,0.00039017,120]
[422170437,1778644244000,-799.47,0.00039005,7]
[422170441,1778644244000,-236.85,0.00039017,120]
[422170455,1778644244000,-150.0,0.0003908,7]
[422170412,1778644244000,-500.0,0.00038899,30]
[422170512,1778644244000,-799.47,0.00039546,7]
[422170633,1778644244000,-1000.0,0.00039736,120]
[422170518,1778644244000,-799.52005628,0.00039546,7]
[422170589,1778644244000,-154.28449056,0.00039687,2]
[422170581,1778644244000,-204.64176081,0.00039687,2]
[422170585,1778644244000,-216.52595637,0.00039687,2]
[422170587,1778644244000,-182.28881612,0.00039687,2]
[422170595,1778644244000,-152.16764211,0.00039687,2]
[422170593,1778644244000,-165.64845727,0.00039687,2]
[422170583,1778644244000,-156.16314058,0.00039687,2]
[422170599,1778644244000,-176.62766387,0.00039687,2]
[422170597,1778644244000,-185.8730972,0.00039687,2]
[422170601,1778644244000,-150.0,0.00039705,30]
[422170603,1778644244000,-236.85,0.00039717,120]
[422170605,1778644244000,-500.0,0.00039726,15]
[422170615,1778644244000,-500.0,0.00039726,15]
[422170607,1778644244000,-500.0,0.00039726,15]
[422170617,1778644244000,-400.56398517,0.00039726,15]
[422170609,1778644244000,-500.0,0.00039726,15]
[422170619,1778644244000,-500.0,0.00039726,15]
[422170625,1778644244000,-500.0,0.00039726,15]
[422170621,1778644244000,-500.0,0.00039726,15]
[422170613,1778644244000,-500.0,0.00039726,15]
[422170623,1778644244000,-500.0,0.00039726,15]
[422170611,1778644244000,-500.0,0.00039726,15]
[422170627,1778644244000,-500.0,0.00039726,15]
[422170629,1778644244000,-500.0,0.00039726,15]
[422170631,1778644244000,-500.0,0.00039726,15]
[422170516,1778644244000,-799.47,0.00039546,7]
[422170635,1778644244000,-150.0,0.00039762,7]
[422170580,1778644244000,-152.31502387,0.00039687,2]
[422170591,1778644244000,-165.95230167,0.00039687,2]
[422170637,1778644244000,-150.0,0.00039762,7]
[422170575,1778644244000,-163.98924737,0.00039687,2]
[422170577,1778644244000,-152.7309979,0.00039687,2]
[422170520,1778644244000,-150.0,0.00039567,7]
[422170524,1778644244000,-11463.81,0.00039616,30]
[422170526,1778644244000,-236.85,0.00039617,120]
[422170533,1778644244000,-40394.0,0.00039658,120]
[422170531,1778644244000,-150.0,0.00039652,7]
[422170528,1778644244000,-1000.0,0.00039637,90]
[422170537,1778644244000,-150.0,0.00039669,2]
[422170529,1778644244000,-150.0,0.00039652,7]
[422170542,1778644244000,-158.59507513,0.00039687,2]
[422170540,1778644244000,-150.0,0.00039672,7]
[422170546,1778644244000,-197.94495994,0.00039687,2]
[422170544,1778644244000,-169.11145862,0.00039687,2]
[422170535,1778644244000,-150.0,0.00039665,7]
[422170522,1778644244000,-42530.0,0.00039582,120]
[422170561,1778644244000,-163.66046887,0.00039687,2]
[422170559,1778644244000,-211.8406005,0.00039687,2]
[422170573,1778644244000,-188.23481159,0.00039687,2]
[422170555,1778644244000,-277.97066714,0.00039687,2]
[422170558,1778644244000,-190.3096074,0.00039687,2]
[422170569,1778644244000,-179.9471737,0.00039687,2]
[422170552,1778644244000,-186.03685841,0.00039687,2]
[422170571,1778644244000,-199.0884758,0.00039687,2]
[422170567,1778644244000,-229.34609085,0.00039687,2]
[422170554,1778644244000,-153.52917932,0.00039687,2]
[422170565,1778644244000,-204.92502982,0.00039687,2]
[422170548,1778644244000,-172.64694977,0.00039687,2]
[422170563,1778644244000,-177.36134302,0.00039687,2]
[422170550,1778644244000,-171.97690867,0.00039687,2]
[422170724,1778644245000,-6790.2,0.0004029,60]
[422170719,1778644245000,-347.6,0.0004029,60]
[422170713,1778644245000,-40394.0,0.00040268,120]
[422170722,1778644245000,-1841.68,0.0004029,60]
[422170707,1778644245000,-1000.0,0.00040249,90]
[422170711,1778644245000,-3796.6848066,0.00040256,12]
[422170717,1778644245000,-1421.29,0.0004029,60]
[422170705,1778644245000,-350.0,0.00040219,7]
[422170726,1778644245000,-313.99873357,0.000403,120]
[422170690,1778644245000,-236.85,0.00040117,120]
[422170715,1778644245000,-42530.0,0.00040268,120]
[422170703,1778644245000,-150.0,0.00040218,30]
[422170740,1778644245000,-152.0,0.00040328,30]
[422170730,1778644245000,-236.85,0.00040317,120]
[422170732,1778644245000,-152.0,0.00040328,30]
[422170736,1778644245000,-152.0,0.00040328,30]
[422170738,1778644245000,-152.0,0.00040328,30]
[422170734,1778644245000,-152.0,0.00040328,30]
[422170744,1778644245000,-152.0,0.00040328,30]
[422170742,1778644245000,-152.0,0.00040328,30]
[422170747,1778644245000,-227.35436347,0.00040328,30]
[422170751,1778644245000,-1539.0,0.00040329,14]
[422170758,1778644245000,-152.0,0.00040329,14]
[422170749,1778644245000,-1539.0,0.00040329,14]
[422170688,1778644245000,-150.0,0.00040054,7]
[422170756,1778644245000,-238.78041857,0.00040329,14]
[422170728,1778644245000,-150.0,0.00040302,7]
[422170701,1778644245000,-236.85,0.00040217,120]
[422170670,1778644245000,-1000.0,0.00039995,90]
[422170684,1778644245000,-42530.0,0.00040039,120]
[422170754,1778644245000,-153.0,0.00040329,14]
[422170641,1778644245000,-42530.0,0.0003981,120]
[422170642,1778644245000,-150.0,0.00039815,7]
[422170647,1778644245000,-849.0275875,0.00039824,90]
[422170645,1778644245000,-236.85,0.00039817,120]
[422170649,1778644245000,-150.0,0.00039859,7]
[422170639,1778644245000,-1081.9410098,0.00039787,2]
[422170651,1778644245000,-157.64447408,0.0003989,2]
[422170655,1778644245000,-150.0,0.00039908,7]
[422170653,1778644245000,-150.0,0.00039908,7]
[422170657,1778644245000,-150.0,0.00039908,7]
[422170672,1778644245000,-1865.36488657,0.00039998,5]
[422170686,1778644245000,-2944.3669092,0.00040045,2]
[422170668,1778644245000,-150.0,0.00039987,7]
[422170674,1778644245000,-153.0,0.0004,30]
[422170676,1778644245000,-167.89629434,0.0004,120]
[422170666,1778644245000,-40394.0,0.00039963,120]
[422170664,1778644245000,-150.0,0.00039962,30]
[422170662,1778644245000,-150.0,0.00039957,7]
[422170678,1778644245000,-507.0,0.00040005,18]
[422170680,1778644245000,-236.85,0.00040017,120]
[422170682,1778644245000,-500.0,0.00040038,30]
[422170694,1778644245000,-150.0,0.00040164,7]
[422170692,1778644245000,-150.0,0.00040152,7]
[422170696,1778644245000,-150.0,0.00040164,7]
[422170698,1778644245000,-150.0,0.00040187,7]
[422170659,1778644245000,-236.85,0.00039917,120]
[422170753,1778644245000,-1577.28095997,0.00040329,14]
[422170709,1778644245000,-150.0,0.00040249,7]
[422170770,1778644245000,-241.66,0.00040338,74]
[422170818,1778644245000,-150.0,0.0004042,7]
[422170831,1778644245000,-150.0,0.00040474,30]
[422170835,1778644245000,-372.95933573,0.00040489,30]
[422170837,1778644245000,-40400.0,0.0004049,120]
[422170848,1778644245000,-1117.03,0.000405,120]